bitfinex/quotes_ETHUSD_20251126
["timestamp","ask_amount","ask_price","bid_price","bid_amount"]
[1764162572487,17.4187551,2909.1,2909.0,0.001]
[1764162572827,4.05149965,2909.1,2909.0,0.001]
[1764162573198,3.51203899,2909.1,2909.0,0.001]
[1764162574220,1.98937466,2909.1,2909.0,0.3227]
[1764162575486,1.06162281,2909.1,2909.0,0.3227]
[1764162576503,1.55132281,2909.1,2909.0,0.001]
[1764162576928,1.06162281,2909.1,2909.0,0.001]
[1764162577101,1.06162281,2909.1,2909.0,0.3227]
[1764162577302,1.55132281,2909.1,2909.0,0.001]
[1764162577539,2.01362281,2909.1,2909.0,0.001]
[1764162577751,1.55132281,2909.1,2909.0,0.001]
[1764162578520,2.01362281,2909.1,2909.0,0.001]
[1764162580741,1.55128847,2909.1,2909.0,0.001]
[1764162581836,1.06078847,2909.1,2909.0,0.3227]
[1764162583345,1.06078847,2909.1,2909.0,0.001]
[1764162585242,1.55048847,2909.1,2909.0,0.001]
[1764162588757,1.06078847,2909.1,2909.0,0.3227]
[1764162589056,0.32209389,2909.1,2909.0,0.3227]
[1764162589861,1.989588,2909.1,2909.0,0.001]
[1764162590059,1.26399389,2909.1,2909.0,0.001]
[1764162590256,0.32209389,2909.1,2909.0,0.3227]
[1764162590424,0.78599389,2909.1,2909.0,0.001]
[1764162591052,1.26399389,2909.1,2909.0,0.001]
[1764162591653,0.78599389,2909.1,2909.0,0.001]
[1764162591963,0.32209389,2909.1,2909.0,0.3227]
[1764162592887,0.32209389,2909.1,2909.0,0.6444]
[1764162593531,0.32409389,2909.1,2909.0,0.6444]
[1764162593933,0.32409389,2909.1,2909.0,0.3227]
[1764162594134,1.0661746,2909.1,2909.0,0.3227]
[1764162594334,0.32409389,2909.1,2909.0,0.3227]
[1764162596868,0.32409389,2909.1,2909.0,0.6444]
[1764162597970,0.32409389,2909.1,2909.0,0.3227]
[1764162600487,1.0661746,2909.1,2909.0,0.6444]
[1764162601080,0.32409389,2909.1,2909.0,0.3227]
[1764162601690,1.0661746,2909.1,2909.0,4.08200742]
[1764162601907,1.26599389,2909.1,2909.0,0.001]
[1764162602188,9.75493442,2909.1,2909.0,0.001]
[1764162602567,9.65519733,2909.1,2909.0,0.001]
[1764162603073,10.16043842,2909.1,2909.0,0.001]
[1764162603389,11.39746139,2909.1,2909.0,0.001]
[1764162603962,11.2977243,2909.1,2909.0,0.001]
[1764162604189,11.39877259,2909.1,2909.0,0.001]
[1764162604866,22.80344233,2909.1,2909.0,0.001]
[1764162605070,22.80344233,2909.1,2908.9,0.001]
[1764162605071,1.13109811,2909.0,2908.9,0.001]
[1764162605254,17.4571262,2908.9,2908.8,0.001]
[1764162605462,1.13109811,2908.8,2908.7,0.001]
[1764162605763,18.89624717,2908.8,2908.7,0.001]
[1764162606094,19.46369017,2908.8,2908.7,0.001]
[1764162606460,19.46289017,2908.8,2908.7,0.001]
[1764162607031,22.90073395,2908.8,2908.7,0.001]
[1764162608172,24.75402087,2908.8,2908.7,0.001]
[1764162610701,31.15200492,2908.8,2908.7,0.001]
[1764162610904,30.49468192,2908.8,2908.7,0.001]
[1764162611101,30.53316129,2908.8,2908.7,0.001]
[1764162612383,29.298718,2908.8,2908.7,0.001]
[1764162614206,30.53448261,2908.8,2908.7,0.001]
[1764162614995,15.26792656,2908.8,2908.7,0.001]
[1764162615905,15.80731692,2908.8,2908.7,0.001]
[1764162616224,31.07387297,2908.8,2908.7,0.001]
[1764162616517,31.07299023,2908.8,2908.7,0.001]
[1764162616682,24.67500618,2908.8,2908.7,0.001]
[1764162617113,8.44871518,2908.8,2908.7,0.001]
[1764162617317,24.67500618,2908.8,2908.7,0.001]
[1764162618919,25.21439722,2908.8,2908.7,0.001]
[1764162620486,22.98710622,2908.8,2908.7,0.001]
[1764162620988,13.62894335,2908.8,2908.7,0.001]
[1764162621189,7.75434161,2908.8,2908.7,0.001]
[1764162621408,15.74015161,2908.8,2908.7,0.001]
[1764162622233,7.75434161,2908.8,2908.7,0.001]
[1764162622548,14.69901861,2908.8,2908.7,0.001]
[1764162622724,14.59928152,2908.8,2908.7,0.001]
[1764162622926,14.69901861,2908.8,2908.7,0.001]
[1764162623456,16.88339761,2908.8,2908.7,0.001]
[1764162623656,16.11160561,2908.8,2908.7,0.001]
[1764162624158,15.65040561,2908.8,2908.7,0.001]
[1764162624442,24.47182714,2908.8,2908.7,0.001]
[1764162624612,23.97836803,2908.8,2908.7,0.001]
[1764162625345,26.79934906,2908.8,2908.7,0.001]
[1764162625553,24.47394237,2908.8,2908.7,0.001]
[1764162625838,17.4571262,2908.7,2908.6,0.001]
[1764162626055,27.70282297,2908.7,2908.6,0.001]
[1764162626350,31.14078494,2908.7,2908.6,0.001]
[1764162627239,29.2893911,2908.7,2908.6,0.001]
[1764162628753,23.1511262,2908.6,2908.1,0.001]
[1764162628957,28.58697706,2908.6,2908.1,0.001]
[1764162629123,26.01599987,2908.6,2908.1,0.001]
[1764162629312,22.94562826,2908.5,2908.1,0.001]
[1764162629528,24.10316626,2908.5,2908.1,0.001]
[1764162629962,22.51953326,2908.5,2908.1,0.001]
[1764162630140,23.0151076,2908.5,2908.1,0.001]
[1764162630477,13.26022798,2908.5,2908.1,0.001]
[1764162630630,29.48651898,2908.5,2908.1,0.001]
[1764162631047,29.48571898,2908.5,2908.1,0.001]
[1764162631328,32.02583875,2908.5,2908.1,0.001]
[1764162631837,32.16372865,2908.5,2908.1,0.001]
[1764162632038,32.70326187,2908.5,2908.1,0.001]
[1764162632234,30.23130904,2908.5,2908.1,0.001]
[1764162632434,29.75918927,2908.5,2908.1,0.001]
[1764162634471,30.23130904,2908.5,2908.1,0.001]
[1764162634652,14.00501804,2908.5,2908.1,0.001]
[1764162634847,30.23130904,2908.5,2908.1,0.001]
[1764162635168,6.82509811,2908.4,2908.1,0.001]
[1764162635475,34.98733146,2908.4,2908.1,0.001]
[1764162635775,35.12523372,2908.4,2908.1,0.001]
[1764162635960,35.12532638,2908.4,2908.1,0.001]
[1764162636154,32.65186874,2908.4,2908.1,0.001]
[1764162636361,35.12521281,2908.4,2908.1,0.001]
[1764162636736,38.56352941,2908.4,2908.1,0.001]
[1764162636951,36.09018534,2908.4,2908.1,0.001]
[1764162638189,38.56234075,2908.4,2908.1,0.001]
[1764162638693,3.94391238,2908.1,2907.8,0.001]
[1764162638996,24.50565738,2908.1,2907.8,0.001]
[1764162639166,24.96155738,2908.1,2907.8,0.001]
[1764162639362,25.28405738,2908.1,2907.8,0.001]
[1764162639684,28.91005738,2908.1,2907.8,0.001]
[1764162639883,35.30744366,2908.1,2907.8,0.001]
[1764162640671,1.13109811,2908.0,2907.8,0.001]
[1764162640876,21.03162627,2907.9,2907.8,0.001]
[1764162641096,21.48752627,2907.9,2907.8,0.001]
[1764162641796,12.58759518,2907.9,2907.8,0.3235]
[1764162641962,10.54110318,2907.9,2907.8,0.3235]
[1764162642166,10.64084027,2907.9,2907.8,0.3235]
[1764162642368,8.78689453,2907.9,2907.8,0.3235]
[1764162642700,6.12889304,2907.9,2907.8,0.3235]
[1764162642865,6.00501704,2907.9,2907.8,0.3235]
[1764162643067,3.02306504,2907.9,2907.8,0.646]
[1764162643776,3.42856904,2907.9,2907.8,0.646]
[1764162644183,4.46266846,2907.9,2907.8,0.646]
[1764162645395,9.10038346,2907.9,2907.8,0.646]
[1764162645595,4.46266846,2907.9,2907.8,0.646]
[1764162645974,4.05716446,2907.9,2907.8,0.646]
[1764162646280,2.82174786,2907.9,2907.8,0.646]
[1764162648411,4.05716446,2907.9,2907.8,0.646]
[1764162648919,2.82183481,2907.9,2907.8,0.646]
[1764162649318,4.05725141,2907.9,2907.8,0.646]
[1764162649479,1.78773539,2907.9,2907.8,0.646]
[1764162650193,2.71469264,2907.9,2907.8,0.646]
[1764162651107,1.78773539,2907.9,2907.8,0.646]
[1764162651302,2.71469264,2907.9,2907.8,0.646]
[1764162652937,1.78773539,2907.9,2907.8,0.646]
[1764162655892,1.78693539,2907.9,2907.8,0.646]
[1764162657301,0.32183578,2907.9,2907.8,4.08502606]
[1764162658002,0.002,2908.4,2907.8,10.96307818]
[1764162658315,0.002,2908.4,2908.3,0.3225]
[1764162658703,0.002,2908.4,2908.3,0.645]
[1764162659855,0.002,2908.4,2908.3,4.08343482]
[1764162664526,0.002,2908.4,2908.3,0.3225]
[1764162664744,0.002,2908.4,2908.3,4.08343482]
[1764162665143,0.002,2908.4,2908.3,0.645]
[1764162665351,0.002,2908.4,2908.3,4.08343482]
[1764162668449,0.002,2908.4,2908.3,0.645]
[1764162668646,0.002,2908.4,2908.3,4.08343482]
[1764162669347,0.002,2908.4,2908.3,0.645]
[1764162669549,0.002,2908.4,2908.3,4.08343482]
[1764162678553,0.002,2908.4,2908.3,10.47492712]
[1764162680090,0.002,2908.4,2908.3,16.86641942]
[1764162680690,0.002,2908.8,2908.7,0.405504]
[1764162680843,0.002,2909.0,2908.7,0.405504]
[1764162680844,0.002,2909.8,2909.0,0.3225]
[1764162681048,0.002,2909.8,2908.8,0.3225]
[1764162681049,0.002,2909.8,2909.1,6.8464923]
[1764162681479,0.002,2909.8,2909.1,7.1689923]
[1764162682467,0.002,2909.8,2909.1,10.60648155]
[1764162682791,0.32271034,2909.8,2909.1,10.60648155]
[1764162682996,0.002,2909.8,2909.1,10.60648155]
[1764162684502,0.320806,2909.7,2909.1,10.60648155]
[1764162684669,0.002,2909.8,2909.1,10.60648155]
[1764162684995,0.32080601,2909.7,2909.1,10.60648155]
[1764162685199,0.002,2909.8,2909.1,10.60648155]
[1764162685400,0.32074721,2909.7,2909.1,10.60648155]
[1764162685600,0.002,2909.8,2909.1,10.60648155]
[1764162685770,0.32085672,2909.7,2909.1,10.60648155]
[1764162685970,0.002,2909.8,2909.1,10.60648155]
[1764162686169,0.32085672,2909.7,2909.1,10.28398155]
[1764162686470,0.002,2909.8,2909.1,10.60648155]
[1764162686671,0.32094321,2909.7,2909.1,10.60648155]
[1764162686871,0.002,2909.8,2909.1,10.60648155]
[1764162687072,0.32094321,2909.7,2909.1,10.60648155]
[1764162687300,0.002,2909.8,2909.1,11.33207566]
[1764162691786,0.002,2909.8,2909.1,10.60648155]
[1764162692423,0.32088506,2909.7,2909.1,10.60648155]
[1764162692607,0.32088506,2909.6,2909.1,10.60648155]
[1764162692915,0.002,2909.8,2909.1,10.60648155]
[1764162693120,0.32088506,2909.7,2909.1,10.60648155]
[1764162693438,0.32088506,2909.6,2909.1,10.60648155]
[1764162693725,0.002,2909.8,2909.1,10.60648155]
[1764162693726,0.453,2909.8,2909.1,10.60648155]
[1764162694024,0.3208581,2909.7,2909.1,10.60648155]
[1764162694245,0.481,2909.2,2909.1,3.43748925]
[1764162694525,1.25286154,2909.2,2908.8,13.26712333]
[1764162694695,0.32086154,2909.1,2909.0,6.3914923]
[1764162695199,0.79986154,2909.1,2909.0,6.3914923]
[1764162695627,1.25086154,2909.1,2909.0,6.3914923]
[1764162696435,1.25086154,2909.1,2909.0,9.82909972]
[1764162698751,1.25086154,2909.1,2909.0,10.15159972]
[1764162698752,0.32086154,2909.1,2909.0,10.15159972]
[1764162699244,0.79986154,2909.1,2909.0,9.82909972]
[1764162700448,1.25086154,2909.1,2909.0,9.82909972]
[1764162700837,0.79986154,2909.1,2909.0,9.82909972]
[1764162701029,0.32086154,2909.1,2909.0,10.15259972]
[1764162701345,0.32286154,2909.1,2909.0,9.83009972]
[1764162703232,0.32286154,2909.1,2909.0,10.15259972]
[1764162704842,0.002,2909.1,2909.0,10.47509972]
[1764162705323,0.0012,2909.1,2909.0,10.47509972]
[1764162708618,0.0012,2909.1,2909.0,10.15259972]
[1764162709849,0.0012,2909.1,2909.0,10.47509972]
[1764162711747,0.0012,2909.1,2909.0,10.15259972]
[1764162713264,0.0012,2909.1,2909.0,10.47509972]
[1764162713560,0.0012,2909.1,2909.0,10.15259972]
[1764162713760,0.0012,2909.1,2909.0,10.47509972]
[1764162717038,0.0012,2909.1,2909.0,10.15259972]
[1764162719946,0.0012,2909.1,2909.0,10.87819383]
[1764162720143,0.002,2909.2,2909.0,11.20069383]
[1764162720348,0.002,2909.4,2909.2,0.405504]
[1764162720653,0.002,2909.4,2909.3,14.23658271]
[1764162720854,0.002,2909.4,2909.3,14.55908271]
[1764162722182,0.002,2909.4,2909.3,17.99633565]
[1764162723984,0.002,2909.4,2909.3,10.87683935]
[1764162724485,0.4686,2909.4,2909.3,9.82874524]
[1764162724706,0.9224,2909.4,2909.3,9.82874524]
[1764162725185,0.4686,2909.4,2909.3,9.82874524]
[1764162725878,0.002,2909.4,2909.3,10.15124524]
[1764162726079,0.4647,2909.4,2909.3,9.82874524]
[1764162726778,0.002,2909.4,2909.3,9.82874524]
[1764162727283,0.4647,2909.4,2909.3,9.82874524]
[1764162727687,0.4647,2909.4,2909.3,3.43725294]
[1764162727878,0.4647,2909.4,2909.3,9.82874524]
[1764162728095,0.002,2909.4,2909.3,9.82874524]
[1764162728761,0.4647,2909.4,2909.3,9.82874524]
[1764162729206,0.002,2909.4,2909.3,10.15124524]
[1764162729517,0.002,2909.4,2909.3,9.82874524]
[1764162730297,0.0012,2909.4,2909.3,9.82874524]
[1764162731979,0.0012,2909.4,2909.3,10.15124524]
[1764162732704,0.0012,2909.4,2909.3,9.82874524]
[1764162732914,0.4639,2909.4,2909.3,9.82874524]
[1764162735484,0.0012,2909.4,2909.3,9.82874524]
[1764162736501,0.4961,2909.4,2909.3,9.82874524]
[1764162737887,0.0012,2909.4,2909.3,9.82874524]
[1764162740582,0.0012,2909.4,2909.3,9.82493809]
[1764162740781,0.4961,2909.4,2909.3,9.82493809]
[1764162742099,0.9892,2909.4,2909.3,9.82493809]
[1764162742485,1.31144386,2909.4,2909.3,9.82493809]
[1764162743028,0.81834386,2909.4,2909.3,9.82493809]
[1764162743887,0.0012,2909.4,2909.3,10.14743809]
[1764162744107,0.32348589,2909.4,2909.3,10.14743809]
[1764162744726,0.0012,2909.4,2909.3,10.14743809]
[1764162744885,0.0012,2909.4,2909.3,10.46993809]
[1764162746105,0.0012,2909.4,2909.3,10.14743809]
[1764162746299,0.4961,2909.4,2909.3,9.82493809]
[1764162746499,0.9892,2909.4,2909.3,9.82493809]
[1764162746918,0.4961,2909.4,2909.3,9.82493809]
[1764162747386,0.9892,2909.4,2909.3,9.82493809]
[1764162747586,0.0012,2909.4,2909.3,9.82493809]
[1764162748315,0.3235856,2909.4,2909.3,9.82493809]
[1764162749217,0.0012,2909.4,2909.3,10.14743809]
[1764162749830,0.0012,2909.4,2909.3,10.46993809]
[1764162750747,0.0012,2909.4,2909.3,10.14743809]
[1764162751031,0.0012,2909.4,2909.3,10.87544209]
[1764162752231,0.002,2909.5,2909.4,0.405504]
[1764162752444,0.002,2909.5,2909.4,1.050504]
[1764162752648,0.002,2909.7,2909.4,1.050504]
[1764162752806,0.002,2909.7,2909.6,7.11568915]
[1764162753202,0.002,2909.7,2909.6,10.87508769]
[1764162753640,0.002,2909.7,2909.6,10.14708369]
[1764162754842,0.0012,2909.7,2909.6,9.82458369]
[1764162756044,0.0012,2909.7,2909.6,10.14708369]
[1764162756207,0.0012,2909.7,2909.6,9.82458369]
[1764162758659,0.0012,2909.7,2909.6,10.14708369]
[1764162759138,0.0012,2909.7,2909.6,9.82458369]
[1764162759761,0.0012,2909.7,2909.6,10.14708369]
[1764162762262,0.4961,2909.7,2909.6,9.82458369]
[1764162763354,0.0012,2909.7,2909.6,10.14708369]
[1764162763755,0.4961,2909.7,2909.6,9.82458369]
[1764162764440,0.9475,2909.7,2909.6,9.82458369]
[1764162766097,0.4961,2909.7,2909.6,9.82458369]
[1764162766781,0.9475,2909.7,2909.6,9.82458369]
[1764162768790,0.0012,2909.7,2909.6,9.82458369]
[1764162772479,0.4911,2909.7,2909.6,9.82458369]
[1764162773806,0.0012,2909.7,2909.6,10.46958369]
[1764162774310,0.002,2909.8,2909.6,14.55788223]
[1764162774516,0.002,2909.8,2909.7,0.3225]
[1764162774693,0.002,2909.8,2909.7,0.645]
[1764162775009,0.002,2909.8,2909.7,1.0984]
[1764162775700,0.002,2909.8,2909.7,4.53518042]
[1764162776597,0.4919,2909.8,2909.7,3.89018042]
[1764162776790,0.002,2909.8,2909.7,10.27786557]
[1764162777586,0.002,2909.8,2909.7,10.60036557]
[1764162777809,0.002,2909.8,2909.7,10.27786557]
[1764162778704,0.002,2909.8,2909.7,10.60036557]
[1764162779306,0.4919,2909.8,2909.7,10.27786557]
[1764162779512,1.26488158,2909.8,2909.7,9.82446557]
[1764162779925,0.81348158,2909.8,2909.7,9.82446557]
[1764162780113,0.32358158,2909.8,2909.7,9.82446557]
[1764162781330,0.81348158,2909.8,2909.7,9.82446557]
[1764162781504,1.26488158,2909.8,2909.7,9.82446557]
[1764162781893,0.0012,2909.8,2909.7,10.14696557]
[1764162782092,0.4911,2909.8,2909.7,9.82446557]
[1764162782295,1.26488331,2909.8,2909.7,9.82446557]
[1764162783594,0.002,2910.0,2909.7,13.58374599]
[1764162783934,0.002,2910.0,2909.7,13.26124599]
[1764162784298,0.002,2910.0,2909.8,0.4749]
[1764162784519,0.4749,2909.9,2909.8,0.4749]
[1764162784826,0.6932,2909.9,2909.8,0.4749]
[1764162785199,0.002,2910.0,2909.8,0.4749]
[1764162786104,0.002,2910.0,2909.9,3.43654421]
[1764162786609,0.4699,2910.0,2909.9,3.43654421]
[1764162787214,0.9291,2910.0,2909.9,3.43654421]
[1764162790334,0.9291,2910.0,2909.9,0.9291]
[1764162792536,0.9291,2910.0,2909.9,4.36564421]
[1764162793032,0.4699,2910.0,2909.9,4.36564421]
[1764162793331,0.002,2910.0,2909.9,4.36564421]
[1764162795739,0.32434141,2910.0,2909.9,4.36564421]
[1764162796637,1.27954141,2910.0,2909.9,4.36564421]
[1764162797337,0.81674141,2910.0,2909.9,4.36564421]
[1764162799142,0.32434141,2910.0,2909.9,4.36564421]
[1764162799340,0.002,2910.0,2909.9,4.36564421]
[1764162800905,0.9572,2910.0,2909.9,4.36564421]
[1764162801240,1.27959489,2910.0,2909.9,3.43654421]
[1764162802147,1.27959489,2910.0,2909.8,0.001]
[1764162802342,1.46479489,2909.9,2909.8,0.001]
[1764162804231,1.46399489,2909.9,2909.8,0.001]
[1764162811158,1.46399489,2909.9,2909.8,6.38935408]
[1764162811770,1.46599489,2909.9,2909.8,6.38935408]
[1764162813494,1.46599489,2909.9,2909.8,9.82601639]
[1764162813694,1.46599489,2909.9,2909.8,3.43766231]
[1764162813874,0.32439489,2909.9,2909.8,3.76096231]
[1764162814098,0.002,2909.9,2909.8,4.08426231]
[1764162814307,0.002,2909.9,2909.8,4.48976631]
[1764162814504,0.002,2909.9,2909.8,5.53975531]
[1764162814968,0.002,2909.9,2909.8,5.21645531]
[1764162815160,0.002,2909.9,2909.8,11.60480939]
[1764162815362,0.002,2909.9,2909.8,11.92810939]
[1764162815964,0.002,2909.9,2909.8,11.60480939]
[1764162816608,0.002,2909.9,2909.8,11.92810939]
[1764162819928,0.002,2909.9,2909.8,11.60480939]
[1764162820313,0.4944,2909.9,2909.8,10.87600539]
[1764162820796,0.002,2909.9,2909.8,10.87600539]
[1764162821822,0.002,2909.9,2909.8,10.47371128]
[1764162824716,0.002,2909.9,2909.8,10.15041128]
[1764162826110,1.1528,2909.9,2909.8,3.7620572]
[1764162826342,1.1528,2909.9,2909.8,3.43766231]
[1764162828915,1.152,2909.9,2909.8,3.43766231]
[1764162833640,0.0012,2909.9,2909.8,3.76096231]
[1764162834220,1.152,2909.9,2909.8,0.001]
[1764162834424,1.47372845,2909.9,2909.8,0.001]
[1764162842783,2.94074005,2909.9,2909.8,0.001]
[1764162842984,2.94074005,2909.9,2909.5,0.001]
[1764162843151,7.60074819,2909.6,2909.3,0.001]
[1764162843353,0.4868,2909.4,2909.3,0.001]
[1764162843685,0.72559411,2909.3,2908.9,0.001]
[1764162843861,0.72559411,2909.0,2908.9,0.001]
[1764162844179,2.27554005,2909.0,2908.9,0.001]
[1764162844379,2.74264005,2909.0,2908.9,0.001]
[1764162844978,1.54994594,2909.0,2908.9,0.001]
[1764162845205,1.27562845,2909.0,2908.9,0.001]
[1764162849083,1.29752845,2909.0,2908.9,0.001]
[1764162850788,0.9758,2909.0,2908.9,0.001]
[1764162853658,0.975,2909.0,2908.9,0.001]
[1764162854074,0.486,2909.0,2908.9,0.001]
[1764162854579,0.9516,2909.0,2908.9,0.001]
[1764162855697,0.4656,2909.2,2908.9,0.001]
[1764162855904,0.4603,2909.0,2908.9,0.001]
[1764162856503,0.4656,2909.2,2908.9,0.001]
[1764162856904,0.4603,2909.0,2908.9,0.001]
[1764162857498,0.9259,2909.0,2908.9,0.001]
[1764162857700,0.1981,2909.9,2908.9,0.3261]
[1764162857874,0.4656,2909.3,2908.9,0.001]
[1764162858200,0.32072679,2909.2,2908.9,0.001]
[1764162858601,0.78632679,2909.2,2908.9,0.001]
[1764162858898,0.4656,2909.2,2908.9,0.001]
[1764162859798,0.1981,2909.9,2908.9,6.8764512]
[1764162860013,0.4656,2909.4,2908.9,6.8764512]
[1764162860312,0.32089937,2909.3,2908.9,6.8764512]
[1764162860472,0.32089937,2909.2,2908.9,6.8764512]
[1764162860676,0.4656,2909.3,2908.9,6.8764512]
[1764162860876,0.32089939,2909.2,2908.9,6.8764512]
[1764162861107,0.4603,2909.0,2908.9,3.4387256]
[1764162861776,0.72559411,2910.1,2908.9,10.9643768]
[1764162862083,0.4656,2909.6,2909.1,6.71345408]
[1764162862319,0.32096587,2909.5,2909.1,6.71345408]
[1764162862617,0.32096587,2909.5,2908.9,10.6392768]
[1764162862618,0.4603,2909.2,2908.9,6.8764512]
[1764162863114,0.4603,2909.0,2908.9,0.001]
[1764162863408,0.78147415,2909.0,2908.9,0.001]
[1764162863607,1.24707415,2909.0,2908.9,0.001]
[1764162869382,1.98867709,2909.0,2908.9,0.001]
[1764162873094,3.22589161,2909.0,2908.9,0.001]
[1764162873300,9.20933972,2909.0,2908.9,0.001]
[1764162874430,6.49976872,2909.0,2908.9,0.001]
[1764162877318,2.9159457,2909.0,2908.9,0.001]
[1764162878335,2.9151457,2909.0,2908.9,0.001]
[1764162878539,3.01488279,2909.0,2908.9,0.001]
[1764162878905,30.10184337,2909.0,2908.9,0.001]
[1764162879111,30.51152637,2909.0,2908.9,0.001]
[1764162879448,29.78593226,2909.0,2908.9,0.001]
[1764162880012,23.39423112,2909.0,2908.9,0.001]
[1764162881143,24.11982523,2909.0,2908.9,0.001]
[1764162881346,20.74867323,2909.0,2908.9,0.001]
[1764162881847,24.25764814,2909.0,2908.9,0.001]
[1764162882546,20.82004072,2909.0,2908.9,0.001]
[1764162882713,20.21403214,2909.0,2908.9,0.001]
[1764162882912,24.05369514,2909.0,2908.9,0.001]
[1764162883545,24.05569514,2909.0,2908.9,0.001]
[1764162883921,20.21603214,2909.0,2908.9,0.001]
[1764162884125,7.65795863,2909.0,2908.9,0.001]
[1764162884319,6.42074411,2909.0,2908.9,0.001]
[1764162884520,6.5204812,2909.0,2908.9,0.001]
[1764162884930,3.3585352,2909.0,2908.9,0.001]
[1764162885225,8.73477029,2909.0,2908.9,0.001]
[1764162885829,12.17237771,2909.0,2908.9,0.001]
[1764162886028,17.51393371,2909.0,2908.9,0.001]
[1764162886419,17.14993371,2909.0,2908.9,0.001]
[1764162887148,24.12182523,2909.0,2908.9,0.001]
[1764162891154,22.88461071,2909.0,2908.9,0.001]
[1764162892126,6.65831971,2909.0,2908.9,0.001]
[1764162892444,22.88461071,2909.0,2908.9,0.001]
[1764162893162,29.27631185,2909.0,2908.9,0.001]
[1764162893525,29.81571324,2909.0,2908.9,0.001]
[1764162894054,16.32602809,2908.8,2908.7,0.001]
[1764162894253,18.64559929,2908.8,2908.7,0.001]
[1764162894556,19.52530329,2908.8,2908.7,0.001]
[1764162894754,19.66315327,2908.8,2908.7,0.001]
[1764162894925,23.10099705,2908.8,2908.7,0.001]
[1764162897245,6.87470605,2908.8,2908.7,0.001]
[1764162897446,23.10099705,2908.8,2908.7,0.001]
[1764162898865,25.16899705,2908.8,2908.7,0.001]
[1764162899169,23.10099705,2908.8,2908.7,0.001]
[1764162900188,29.49269819,2908.8,2908.7,0.001]
[1764162900466,1.2308352,2908.5,2908.4,0.001]
[1764162900683,25.37760443,2908.5,2908.4,0.001]
[1764162900860,25.85180443,2908.5,2908.4,0.001]
[1764162901065,31.6816834,2908.5,2908.4,0.001]
[1764162902449,35.11988178,2908.5,2908.4,0.001]
[1764162903041,35.11908178,2908.5,2908.4,0.001]
[1764162903276,37.58989341,2908.5,2908.4,0.001]
[1764162903576,3.67146769,2908.5,2908.4,0.3269]
[1764162903779,3.67146769,2908.5,2908.4,8.14820682]
[1764162903780,1.06277709,2908.5,2908.4,8.14820682]
[1764162904010,1.85426564,2909.0,2908.4,8.14820682]
[1764162904011,0.002,2909.0,2908.4,8.14820682]
[1764162904304,0.002,2909.2,2908.9,6.39650114]
[1764162904502,0.002,2909.6,2909.1,0.0028]
[1764162904683,0.002,2909.6,2909.2,7.49540682]
[1764162904987,0.002,2909.6,2909.2,1.10370568]
[1764162905192,0.002,2909.6,2909.0,6.87521484]
[1764162905486,0.002,2909.6,2909.0,3.43760742]
[1764162905785,0.002,2909.6,2909.0,6.87521484]
[1764162907178,0.002,2909.6,2909.0,3.43760742]
[1764162907358,0.002,2909.6,2908.6,6.87616034]
[1764162907781,0.002,2909.6,2908.6,3.43808017]
[1764162908091,0.4806,2909.6,2908.5,6.87634522]
[1764162908468,0.4806,2909.6,2908.4,0.001]
[1764162908878,1.21961108,2909.6,2908.4,0.001]
[1764162909107,0.002,2909.6,2908.4,0.001]
[1764162909772,0.407504,2909.6,2908.4,0.001]
[1764162909976,0.4806,2909.5,2908.4,0.001]
[1764162910299,1.94470384,2909.5,2908.4,0.001]
[1764162910604,0.4806,2909.5,2908.4,0.001]
[1764162910992,1.21907034,2909.5,2908.4,0.001]
[1764162913879,0.884104,2909.4,2908.4,0.001]
[1764162914078,0.4612,2909.3,2908.4,0.001]
[1764162916011,0.32035219,2909.2,2908.4,0.001]
[1764162917322,0.32035219,2909.1,2908.4,0.001]
[1764162917607,0.002,2909.3,2908.4,0.001]
[1764162920287,0.002,2909.3,2908.5,0.0009]
[1764162920599,0.002,2909.3,2909.2,0.0009]
[1764162920805,0.002,2909.3,2909.2,0.0018]
[1764162921726,0.002,2909.3,2909.2,0.0009]
[1764162922687,0.002,2909.3,2908.7,0.0009]
[1764162922925,0.002,2909.3,2909.2,0.0009]
[1764162923811,0.002,2909.3,2908.4,0.001]
[1764162923978,0.002,2909.3,2908.5,0.0009]
[1764162924385,0.32220827,2909.3,2908.5,0.0009]
[1764162924628,0.002,2909.3,2908.5,0.0009]
[1764162924916,0.002,2909.3,2909.2,0.0009]
[1764162927736,0.0012,2909.3,2909.2,0.0009]
[1764162931115,0.32140693,2909.3,2909.2,0.0009]
[1764162931409,0.0012,2909.3,2909.2,0.0009]
[1764162931725,0.32140693,2909.3,2909.2,0.0009]
[1764162931923,0.0012,2909.3,2909.2,0.0009]
[1764162932102,0.32140693,2909.3,2909.2,0.0009]
[1764162933338,0.002,2909.8,2909.2,7.69132326]
[1764162933554,0.002,2910.0,2909.8,1.13109811]
[1764162933734,0.002,2910.0,2909.9,7.11691737]
[1764162933908,0.002,2910.0,2909.9,8.77518183]
[1764162934137,0.002,2910.0,2909.3,1.43526446]
[1764162934343,0.002,2910.0,2909.6,6.39132326]
[1764162934554,0.002,2910.0,2909.2,0.405504]
[1764162934756,0.002,2910.0,2909.3,11.56302328]
[1764162934963,0.002,2910.0,2909.3,15.00027622]
[1764162935561,0.002,2910.0,2909.5,8.30356266]
[1764162935768,0.002,2910.0,2909.6,1.25126446]
[1764162936141,0.002,2910.0,2909.6,0.405504]
[1764162936987,0.002,2910.0,2909.8,0.72559411]
[1764162938678,0.002,2910.0,2909.7,0.72559411]
[1764162939066,0.002,2910.0,2909.9,0.72559411]
[1764162941982,0.002,2910.0,2909.9,4.16213832]
[1764162945186,0.002,2910.0,2909.9,3.43654421]
[1764162947989,0.002,2910.0,2909.7,0.72559411]